[Event "Early-Titled-Tuesday-Blitz-May-14-2024"]
[Site "Chess.com"]
[Date "2024.05.14"]
[Round "5"]
[White "Pumpkin_in_moonlight"]
[Black "KanalSzachowy"]
[Result "0-1"]
[WhiteElo "2184"]
[BlackElo "2407"]
[TimeControl "180+1"]
[EndTime "8:57:27 PDT"]
[Termination "KanalSzachowy won on time"]

1. e4 {[%clk 0:03:00.9]} 1... c5 {[%clk 0:02:59.3]} 2. Nf3 {[%clk 0:03:00.2]}
2... a6 {[%clk 0:02:58.2]} 3. g3 {[%clk 0:02:55.5]} 3... b5 {[%clk 0:02:55]} 4.
Bg2 {[%clk 0:02:53.7]} 4... Bb7 {[%clk 0:02:55.5]} 5. O-O {[%clk 0:02:53.1]}
5... e6 {[%clk 0:02:55.9]} 6. Re1 {[%clk 0:02:48.4]} 6... Nc6 {[%clk 0:02:53.5]}
7. d4 {[%clk 0:02:39.4]} 7... cxd4 {[%clk 0:02:51.8]} 8. Nxd4 {[%clk 0:02:39.1]}
8... Nf6 {[%clk 0:02:29.8]} 9. e5 {[%clk 0:02:25.4]} 9... Nxd4 {[%clk
0:02:28.6]} 10. Bxb7 {[%clk 0:02:21.2]} 10... Rb8 {[%clk 0:02:20.5]} 11. Bg2
{[%clk 0:02:20]} 11... Bc5 {[%clk 0:02:13.9]} 12. exf6 {[%clk 0:02:17]} 12...
Qxf6 {[%clk 0:02:13.2]} 13. Be3 {[%clk 0:02:12]} 13... O-O {[%clk 0:02:10.6]}
14. Nc3 {[%clk 0:02:11.4]} 14... d5 {[%clk 0:02:06.7]} 15. Bf4 {[%clk 0:01:44]}
15... Nc6 {[%clk 0:01:50.9]} 16. Bxb8 {[%clk 0:01:42.6]} 16... Bxf2+ {[%clk
0:01:48.7]} 17. Kh1 {[%clk 0:01:38.7]} 17... Bxe1 {[%clk 0:01:49]} 18. Qxe1
{[%clk 0:01:19.5]} 18... Rxb8 {[%clk 0:01:48.4]} 19. Qf1 {[%clk 0:01:10.5]}
19... Qd4 {[%clk 0:01:48.1]} 20. Qf4 {[%clk 0:00:53.5]} 20... Qxf4 {[%clk
0:01:42.7]} 21. gxf4 {[%clk 0:00:53.7]} 21... Nd4 {[%clk 0:01:43.6]} 22. Rc1
{[%clk 0:00:46]} 22... b4 {[%clk 0:01:40.8]} 23. Na4 {[%clk 0:00:43.3]} 23...
Ne2 {[%clk 0:01:38.2]} 24. Rf1 {[%clk 0:00:42.5]} 24... Rc8 {[%clk 0:01:37.2]}
25. c3 {[%clk 0:00:32.4]} 25... bxc3 {[%clk 0:01:36.8]} 26. Nxc3 {[%clk
0:00:25.6]} 26... Nxc3 {[%clk 0:01:36.1]} 27. Rc1 {[%clk 0:00:18.4]} 27... d4
{[%clk 0:01:35.3]} 28. bxc3 {[%clk 0:00:17.8]} 28... Rxc3 {[%clk 0:01:29.8]} 29.
Rxc3 {[%clk 0:00:16.6]} 29... dxc3 {[%clk 0:01:30.7]} 30. Be4 {[%clk 0:00:16.6]}
30... f5 {[%clk 0:01:29.9]} 31. Bc2 {[%clk 0:00:16.1]} 31... Kf7 {[%clk
0:01:23.2]} 32. Kg2 {[%clk 0:00:16.3]} 32... Kf6 {[%clk 0:01:18.5]} 33. Kf3
{[%clk 0:00:13.1]} 33... e5 {[%clk 0:01:16.7]} 34. fxe5+ {[%clk 0:00:11.5]}
34... Kxe5 {[%clk 0:01:17.6]} 35. Ke3 {[%clk 0:00:11.6]} 35... g5 {[%clk
0:01:14.6]} 36. Kf3 {[%clk 0:00:09]} 36... g4+ {[%clk 0:01:11.1]} 37. Ke3 {[%clk
0:00:08]} 37... f4+ {[%clk 0:01:11.6]} 38. Kd3 {[%clk 0:00:06]} 38... g3 {[%clk
0:01:11]} 39. hxg3 {[%clk 0:00:05.6]} 39... fxg3 {[%clk 0:01:11.6]} 40. Ke3
{[%clk 0:00:03.5]} 40... h5 {[%clk 0:01:07]} 41. Kf3 {[%clk 0:00:03.4]} 41... h4
{[%clk 0:01:07.5]} 42. Kg2 {[%clk 0:00:02]} 42... Kd4 {[%clk 0:01:07.3]} 43. Bf5
{[%clk 0:00:01.4]} 43... Ke3 {[%clk 0:00:57.2]} 44. Kf1 {[%clk 0:00:00.6]} 44...
Kd2 {[%clk 0:00:55.7]} 0-1

[Event "Early-Titled-Tuesday-Blitz-May-14-2024"]
[Site "Chess.com"]
[Date "2024.05.14"]
[Round "5"]
[White "Witik"]
[Black "CristianS27"]
[Result "0-1"]
[WhiteElo "2753"]
[BlackElo "2543"]
[TimeControl "180+1"]
[EndTime "8:57:29 PDT"]
[Termination "CristianS27 won by resignation"]

1. d4 {[%clk 0:02:58.9]} 1... Nf6 {[%clk 0:02:55.1]} 2. Nf3 {[%clk 0:02:58.8]}
2... g6 {[%clk 0:02:54.5]} 3. g3 {[%clk 0:02:57.5]} 3... Bg7 {[%clk 0:02:54.8]}
4. Bg2 {[%clk 0:02:58.1]} 4... O-O {[%clk 0:02:55.7]} 5. O-O {[%clk 0:02:58.7]}
5... d6 {[%clk 0:02:56.6]} 6. b3 {[%clk 0:02:59.2]} 6... c5 {[%clk 0:02:55.9]}
7. Bb2 {[%clk 0:02:48]} 7... cxd4 {[%clk 0:02:54.3]} 8. Nxd4 {[%clk 0:02:48.1]}
8... d5 {[%clk 0:02:54.6]} 9. c4 {[%clk 0:02:41.7]} 9... Nc6 {[%clk 0:02:54.8]}
10. cxd5 {[%clk 0:02:36.6]} 10... Nxd5 {[%clk 0:02:51.3]} 11. Nxc6 {[%clk
0:02:35.4]} 11... bxc6 {[%clk 0:02:48.8]} 12. Bxg7 {[%clk 0:02:35.2]} 12... Kxg7
{[%clk 0:02:49.5]} 13. Qd4+ {[%clk 0:02:24.2]} 13... Nf6 {[%clk 0:02:29]} 14.
Qxd8 {[%clk 0:02:17.1]} 14... Rxd8 {[%clk 0:02:29.9]} 15. Bxc6 {[%clk
0:02:17.6]} 15... Rb8 {[%clk 0:02:28.1]} 16. Nc3 {[%clk 0:02:04]} 16... Bh3
{[%clk 0:02:21]} 17. Bg2 {[%clk 0:02:03.4]} 17... Bxg2 {[%clk 0:02:16.9]} 18.
Kxg2 {[%clk 0:02:04.3]} 18... Rbc8 {[%clk 0:02:13.2]} 19. Rfd1 {[%clk
0:01:41.6]} 19... Rxd1 {[%clk 0:02:07.9]} 20. Nxd1 {[%clk 0:01:42.5]} 20... Rc2
{[%clk 0:02:08.2]} 21. Kf3 {[%clk 0:01:41.5]} 21... Nd5 {[%clk 0:02:03]} 22. Ne3
{[%clk 0:01:31.7]} 22... Rc3 {[%clk 0:01:49.9]} 23. Ke4 {[%clk 0:01:14.3]} 23...
Nxe3 {[%clk 0:01:43.7]} 24. fxe3 {[%clk 0:01:13.4]} 24... Rc2 {[%clk 0:01:43.4]}
25. Kd3 {[%clk 0:01:13.4]} 25... Rb2 {[%clk 0:01:42.1]} 26. e4 {[%clk
0:00:52.9]} 26... Kf6 {[%clk 0:01:39.5]} 27. Kd4 {[%clk 0:00:43.5]} 27... Rxe2
{[%clk 0:01:37.7]} 28. a4 {[%clk 0:00:40.5]} 28... Rxh2 {[%clk 0:01:35.9]} 29.
b4 {[%clk 0:00:37.5]} 29... Rg2 {[%clk 0:01:23.1]} 30. Ra3 {[%clk 0:00:27.2]}
30... h5 {[%clk 0:01:22.9]} 31. b5 {[%clk 0:00:27.1]} 31... g5 {[%clk
0:01:18.9]} 32. a5 {[%clk 0:00:27.6]} 32... Rb2 {[%clk 0:01:18.5]} 33. Kc5
{[%clk 0:00:27.3]} 33... Ke5 {[%clk 0:01:11.5]} 34. b6 {[%clk 0:00:26.1]} 34...
axb6+ {[%clk 0:00:57.8]} 35. axb6 {[%clk 0:00:26.6]} 35... Kxe4 {[%clk
0:00:50.7]} 36. Ra7 {[%clk 0:00:25.9]} 36... f5 {[%clk 0:00:44.7]} 37. Rxe7+
{[%clk 0:00:25.3]} 37... Kf3 {[%clk 0:00:45.3]} 38. Rf7 {[%clk 0:00:19.4]} 38...
Kxg3 {[%clk 0:00:41.3]} 39. Rxf5 {[%clk 0:00:19.2]} 39... Kg4 {[%clk 0:00:41.7]}
40. Rf7 {[%clk 0:00:19.2]} 40... h4 {[%clk 0:00:40.8]} 41. b7 {[%clk 0:00:19.6]}
41... h3 {[%clk 0:00:40.4]} 42. Kc6 {[%clk 0:00:20.1]} 42... h2 {[%clk 0:00:39]}
43. Rh7 {[%clk 0:00:20.3]} 43... Kg3 {[%clk 0:00:38.5]} 44. Kc7 {[%clk
0:00:19.9]} 44... g4 {[%clk 0:00:37.1]} 45. b8=Q {[%clk 0:00:19.8]} 45... Rxb8
{[%clk 0:00:38]} 46. Kxb8 {[%clk 0:00:20.7]} 46... Kg2 {[%clk 0:00:38.2]} 0-1

[Event "Early-Titled-Tuesday-Blitz-May-14-2024"]
[Site "Chess.com"]
[Date "2024.05.14"]
[Round "5"]
[White "ChEsper99"]
[Black "urano56"]
[Result "0-1"]
[WhiteElo "2267"]
[BlackElo "2418"]
[TimeControl "180+1"]
[EndTime "8:57:29 PDT"]
[Termination "urano56 won by resignation"]

1. Nf3 {[%clk 0:03:00.9]} 1... d5 {[%clk 0:02:58.6]} 2. g3 {[%clk 0:03:00.3]}
2... c5 {[%clk 0:02:57.5]} 3. Bg2 {[%clk 0:02:59.4]} 3... Nc6 {[%clk 0:02:58.1]}
4. d4 {[%clk 0:02:58.3]} 4... cxd4 {[%clk 0:02:57.3]} 5. Nxd4 {[%clk 0:02:59.2]}
5... Nf6 {[%clk 0:02:56.7]} 6. O-O {[%clk 0:02:58.9]} 6... e5 {[%clk 0:02:54.4]}
7. Nxc6 {[%clk 0:02:58.8]} 7... bxc6 {[%clk 0:02:54.8]} 8. c4 {[%clk 0:02:59.2]}
8... Be6 {[%clk 0:02:54.8]} 9. Nc3 {[%clk 0:02:57]} 9... Rc8 {[%clk 0:02:49.1]}
10. Bg5 {[%clk 0:02:49.1]} 10... d4 {[%clk 0:02:48]} 11. Ne4 {[%clk 0:02:38.2]}
11... Be7 {[%clk 0:02:39]} 12. Qa4 {[%clk 0:02:15.9]} 12... Nxe4 {[%clk
0:02:31.3]} 13. Bxe7 {[%clk 0:02:15.9]} 13... Qxe7 {[%clk 0:02:32.2]} 14. Bxe4
{[%clk 0:02:13.9]} 14... Qc7 {[%clk 0:02:31.8]} 15. c5 {[%clk 0:02:09.8]} 15...
O-O {[%clk 0:02:30.9]} 16. f4 {[%clk 0:01:57.5]} 16... f5 {[%clk 0:02:23.6]} 17.
Bd3 {[%clk 0:01:56.5]} 17... exf4 {[%clk 0:02:16.6]} 18. Rxf4 {[%clk 0:01:54.2]}
18... Rb8 {[%clk 0:02:09.9]} 19. b3 {[%clk 0:01:52.1]} 19... Rfd8 {[%clk
0:02:06.6]} 20. Rxd4 {[%clk 0:01:50.6]} 20... Qe5 {[%clk 0:02:05.1]} 21. Rxd8+
{[%clk 0:01:44.7]} 21... Rxd8 {[%clk 0:02:06]} 22. Rf1 {[%clk 0:01:23.6]} 22...
Qxc5+ {[%clk 0:02:03.7]} 23. Rf2 {[%clk 0:01:08.9]} 23... g6 {[%clk 0:01:52.8]}
24. Qf4 {[%clk 0:01:00.4]} 24... a5 {[%clk 0:01:37.3]} 25. h4 {[%clk 0:00:59.7]}
25... Rd4 {[%clk 0:01:34.5]} 26. Qb8+ {[%clk 0:00:57.5]} 26... Kg7 {[%clk
0:01:33.3]} 27. Qc7+ {[%clk 0:00:49]} 27... Kh6 {[%clk 0:01:25.9]} 28. Kh2
{[%clk 0:00:13.7]} 28... Rxh4+ {[%clk 0:01:25.4]} 29. gxh4 {[%clk 0:00:11.6]}
29... Qxf2+ {[%clk 0:01:24.9]} 30. Kh1 {[%clk 0:00:05.5]} 30... Bd5+ {[%clk
0:01:24.9]} 31. e4 {[%clk 0:00:05.9]} 31... fxe4 {[%clk 0:01:25.3]} 32. Bc4
{[%clk 0:00:03.8]} 32... Bxc4 {[%clk 0:00:54.2]} 33. bxc4 {[%clk 0:00:04.7]}
33... Qxh4+ {[%clk 0:00:53.8]} 34. Kg2 {[%clk 0:00:03.1]} 34... Qg5+ {[%clk
0:00:53.1]} 35. Kf1 {[%clk 0:00:01.1]} 35... e3 {[%clk 0:00:49]} 36. Ke2 {[%clk
0:00:01.1]} 36... Qc5 {[%clk 0:00:46.2]} 37. Qh2+ {[%clk 0:00:01.3]} 37... Qh5+
{[%clk 0:00:43.6]} 38. Qxh5+ {[%clk 0:00:00.4]} 38... Kxh5 {[%clk 0:00:44.5]}
39. Kxe3 {[%clk 0:00:00.7]} 39... g5 {[%clk 0:00:44.1]} 40. Kd4 {[%clk
0:00:00.5]} 40... g4 {[%clk 0:00:44.5]} 41. Kc5 {[%clk 0:00:01.4]} 41... g3
{[%clk 0:00:45.2]} 42. Kxc6 {[%clk 0:00:02.3]} 42... g2 {[%clk 0:00:46.1]} 43.
Kb7 {[%clk 0:00:02.4]} 43... g1=Q {[%clk 0:00:47]} 44. c5 {[%clk 0:00:03.1]}
44... Qxc5 {[%clk 0:00:46.8]} 0-1

[Event "Early-Titled-Tuesday-Blitz-May-14-2024"]
[Site "Chess.com"]
[Date "2024.05.14"]
[Round "5"]
[White "chess_blitz00"]
[Black "Carolinamazariegos88"]
[Result "1-0"]
[WhiteElo "2475"]
[BlackElo "1697"]
[TimeControl "180+1"]
[EndTime "8:57:30 PDT"]
[Termination "chess_blitz00 won on time"]

1. a4 {[%clk 0:03:00.9]} 1... d5 {[%clk 0:02:27.7]} 2. Ra3 {[%clk 0:02:32.1]}
2... e5 {[%clk 0:02:26.6]} 3. Re3 {[%clk 0:02:30.8]} 3... Nc6 {[%clk 0:02:26]}
4. d4 {[%clk 0:02:30.5]} 4... e4 {[%clk 0:02:23.2]} 5. c4 {[%clk 0:02:30.3]}
5... Be6 {[%clk 0:02:16.3]} 6. Nc3 {[%clk 0:02:26.9]} 6... Nf6 {[%clk
0:02:09.3]} 7. cxd5 {[%clk 0:02:25.9]} 7... Bxd5 {[%clk 0:02:08.2]} 8. Nf3
{[%clk 0:02:05.4]} 8... Bb4 {[%clk 0:02:05.4]} 9. Nd2 {[%clk 0:01:58.7]} 9...
O-O {[%clk 0:02:03.2]} 10. g4 {[%clk 0:01:50.9]} 10... Nxg4 {[%clk 0:01:49.6]}
11. Rg3 {[%clk 0:01:50.4]} 11... f5 {[%clk 0:01:47.7]} 12. e3 {[%clk 0:01:45.5]}
12... Ne7 {[%clk 0:01:36.8]} 13. Rhg1 {[%clk 0:01:34.7]} 13... Ng6 {[%clk
0:01:33.3]} 14. h3 {[%clk 0:01:33]} 14... Nf6 {[%clk 0:01:32.1]} 15. Nxd5 {[%clk
0:01:24.9]} 15... Nxd5 {[%clk 0:01:27.2]} 16. Bc4 {[%clk 0:01:22.7]} 16... c6
{[%clk 0:01:27.2]} 17. Qh5 {[%clk 0:01:12.4]} 17... Qf6 {[%clk 0:01:15.8]} 18.
Kd1 {[%clk 0:01:06.3]} 18... a6 {[%clk 0:01:13.1]} 19. h4 {[%clk 0:00:37.7]}
19... b5 {[%clk 0:01:12.2]} 20. Ba2 {[%clk 0:00:36.1]} 20... bxa4 {[%clk
0:01:09.6]} 21. Rxg6 {[%clk 0:00:36.3]} 21... hxg6 {[%clk 0:01:08.8]} 22. Rxg6
{[%clk 0:00:37.2]} 22... Qf7 {[%clk 0:01:04.2]} 23. Nc4 {[%clk 0:00:36.1]} 23...
Nf6 {[%clk 0:01:01.7]} 24. Qg5 {[%clk 0:00:28.9]} 24... Nh7 {[%clk 0:00:56.9]}
25. Qg1 {[%clk 0:00:24]} 25... Ra7 {[%clk 0:00:55.2]} 26. h5 {[%clk 0:00:23.2]}
26... Kh8 {[%clk 0:00:43.5]} 27. Kc2 {[%clk 0:00:18.9]} 27... c5 {[%clk
0:00:39.2]} 28. Kb1 {[%clk 0:00:18.8]} 28... Qb7 {[%clk 0:00:20.1]} 29. h6
{[%clk 0:00:18.5]} 29... gxh6 {[%clk 0:00:19.5]} 30. Nd6 {[%clk 0:00:18]} 30...
Qe7 {[%clk 0:00:15.4]} 31. Rg8+ {[%clk 0:00:17.7]} 1-0

[Event "Early-Titled-Tuesday-Blitz-May-14-2024"]
[Site "Chess.com"]
[Date "2024.05.14"]
[Round "5"]
[White "MathiasWomacka"]
[Black "LeoWin2012"]
[Result "1-0"]
[WhiteElo "2529"]
[BlackElo "2318"]
[TimeControl "180+1"]
[EndTime "8:57:33 PDT"]
[Termination "MathiasWomacka won by checkmate"]

1. e4 {[%clk 0:03:00.9]} 1... e6 {[%clk 0:02:59.8]} 2. d4 {[%clk 0:03:00]} 2...
c5 {[%clk 0:02:59.7]} 3. Nf3 {[%clk 0:02:58.2]} 3... cxd4 {[%clk 0:02:58.7]} 4.
Nxd4 {[%clk 0:02:59.1]} 4... a6 {[%clk 0:02:58.3]} 5. Bd3 {[%clk 0:02:57.7]}
5... Bc5 {[%clk 0:02:56.6]} 6. Nb3 {[%clk 0:02:56.6]} 6... Ba7 {[%clk
0:02:56.7]} 7. Qg4 {[%clk 0:02:53.4]} 7... Kf8 {[%clk 0:02:52]} 8. Nc3 {[%clk
0:02:48.4]} 8... Nf6 {[%clk 0:02:51.5]} 9. Qg3 {[%clk 0:02:48.3]} 9... Nc6
{[%clk 0:02:51]} 10. e5 {[%clk 0:02:23.9]} 10... Nd5 {[%clk 0:02:43.5]} 11. Nxd5
{[%clk 0:02:22.5]} 11... exd5 {[%clk 0:02:44.4]} 12. Bg5 {[%clk 0:02:15.1]}
12... Qe8 {[%clk 0:02:41.9]} 13. O-O {[%clk 0:02:03.4]} 13... Qxe5 {[%clk
0:02:31.6]} 14. Bf4 {[%clk 0:02:00.4]} 14... Qf6 {[%clk 0:02:27.4]} 15. Bd6+
{[%clk 0:01:43.6]} 15... Kg8 {[%clk 0:02:26.8]} 16. Rae1 {[%clk 0:01:43.8]}
16... g6 {[%clk 0:02:23.5]} 17. Na5 {[%clk 0:01:23.7]} 17... Bb8 {[%clk
0:01:44]} 18. Bxb8 {[%clk 0:01:09.2]} 18... Nxb8 {[%clk 0:01:44.9]} 19. Re8+
{[%clk 0:00:55.5]} 19... Kg7 {[%clk 0:01:44.9]} 20. Rxh8 {[%clk 0:00:56.4]}
20... Kxh8 {[%clk 0:01:45.8]} 21. Re1 {[%clk 0:00:56.5]} 21... Nc6 {[%clk
0:01:40.7]} 22. Nxc6 {[%clk 0:00:55.2]} 22... bxc6 {[%clk 0:00:50.6]} 23. Re8+
{[%clk 0:00:55.5]} 23... Kg7 {[%clk 0:00:50.5]} 24. Qc7 {[%clk 0:00:55.6]} 24...
Qxb2 {[%clk 0:00:08]} 25. Rxc8 {[%clk 0:00:54.1]} 25... Rxc8 {[%clk 0:00:06.7]}
26. Qxc8 {[%clk 0:00:55]} 26... Qa1+ {[%clk 0:00:03.9]} 27. Bf1 {[%clk
0:00:54.8]} 27... Qxa2 {[%clk 0:00:04.8]} 28. c3 {[%clk 0:00:49.4]} 28... a5
{[%clk 0:00:03.2]} 29. Qxd7 {[%clk 0:00:48]} 29... c5 {[%clk 0:00:03.7]} 30. g3
{[%clk 0:00:39.5]} 30... a4 {[%clk 0:00:03.4]} 31. Bb5 {[%clk 0:00:33]} 31... a3
{[%clk 0:00:02.6]} 32. Bc6 {[%clk 0:00:32.5]} 32... Qb1+ {[%clk 0:00:01.5]} 33.
Kg2 {[%clk 0:00:32.7]} 33... a2 {[%clk 0:00:02.2]} 34. Bxd5 {[%clk 0:00:32.3]}
34... a1=Q {[%clk 0:00:02.9]} 35. Qxf7+ {[%clk 0:00:31.4]} 35... Kh6 {[%clk
0:00:03.6]} 36. Qf8+ {[%clk 0:00:28.7]} 36... Kh5 {[%clk 0:00:02.5]} 37. Bf3+
{[%clk 0:00:26.4]} 37... Kg5 {[%clk 0:00:02.6]} 38. Qf4# {[%clk 0:00:25.3]} 1-0

[Event "Early-Titled-Tuesday-Blitz-May-14-2024"]
[Site "Chess.com"]
[Date "2024.05.14"]
[Round "5"]
[White "juancruzarias"]
[Black "chessfatbear"]
[Result "0-1"]
[WhiteElo "2694"]
[BlackElo "2898"]
[TimeControl "180+1"]
[EndTime "8:57:34 PDT"]
[Termination "chessfatbear won by resignation"]

1. d4 {[%clk 0:03:00.9]} 1... Nf6 {[%clk 0:02:57.6]} 2. c4 {[%clk 0:02:59.6]}
2... e6 {[%clk 0:02:58.1]} 3. g3 {[%clk 0:02:58.4]} 3... d5 {[%clk 0:02:59]} 4.
Bg2 {[%clk 0:02:58.2]} 4... Bb4+ {[%clk 0:02:58.4]} 5. Nd2 {[%clk 0:02:55]} 5...
O-O {[%clk 0:02:57.2]} 6. Nf3 {[%clk 0:02:44]} 6... b6 {[%clk 0:02:56.4]} 7. a3
{[%clk 0:02:36.5]} 7... Be7 {[%clk 0:02:52.6]} 8. cxd5 {[%clk 0:02:24]} 8...
exd5 {[%clk 0:02:48.7]} 9. O-O {[%clk 0:02:23.4]} 9... Bb7 {[%clk 0:02:44.7]}
10. b4 {[%clk 0:02:13.1]} 10... Nbd7 {[%clk 0:02:40.4]} 11. Ne5 {[%clk
0:02:09.6]} 11... Bd6 {[%clk 0:02:33.7]} 12. Ndf3 {[%clk 0:02:06.9]} 12... Qe7
{[%clk 0:02:33.3]} 13. Bb2 {[%clk 0:01:54]} 13... Ne4 {[%clk 0:02:33.3]} 14. Rc1
{[%clk 0:01:39.8]} 14... Ndf6 {[%clk 0:02:30.9]} 15. Nd3 {[%clk 0:01:34.1]}
15... Rfe8 {[%clk 0:02:21.3]} 16. Nfe5 {[%clk 0:01:32]} 16... Ng5 {[%clk
0:02:15.4]} 17. Nf4 {[%clk 0:01:22.4]} 17... Ne6 {[%clk 0:02:11.9]} 18. e3
{[%clk 0:00:59.7]} 18... Nxf4 {[%clk 0:01:49.7]} 19. gxf4 {[%clk 0:00:56]} 19...
a5 {[%clk 0:01:50.6]} 20. Bc3 {[%clk 0:00:47.4]} 20... axb4 {[%clk 0:01:43.2]}
21. axb4 {[%clk 0:00:48.3]} 21... Ne4 {[%clk 0:01:43.3]} 22. b5 {[%clk
0:00:41.3]} 22... f6 {[%clk 0:01:37.8]} 23. Nd3 {[%clk 0:00:36.9]} 23... Ra3
{[%clk 0:01:30.3]} 24. Bb2 {[%clk 0:00:36.4]} 24... Ra5 {[%clk 0:01:25.4]} 25.
Qb3 {[%clk 0:00:36.1]} 25... Qd7 {[%clk 0:01:24.1]} 26. Bxe4 {[%clk 0:00:34.6]}
26... Rxe4 {[%clk 0:01:23.4]} 27. Ra1 {[%clk 0:00:20]} 27... Rxb5 {[%clk
0:01:18.7]} 28. Qc2 {[%clk 0:00:20]} 28... Re8 {[%clk 0:01:05.6]} 29. Ra7 {[%clk
0:00:18.9]} 29... Bc8 {[%clk 0:01:00.7]} 30. Kh1 {[%clk 0:00:19.1]} 30... Qh3
{[%clk 0:00:55.2]} 31. Qe2 {[%clk 0:00:16.2]} 31... Bf5 {[%clk 0:00:47.8]} 32.
Ra2 {[%clk 0:00:07.7]} 32... Ra5 {[%clk 0:00:30]} 33. Rxa5 {[%clk 0:00:05.5]}
33... bxa5 {[%clk 0:00:30.9]} 34. Rg1 {[%clk 0:00:05.1]} 34... Be4+ {[%clk
0:00:30.1]} 0-1

[Event "Early-Titled-Tuesday-Blitz-May-14-2024"]
[Site "Chess.com"]
[Date "2024.05.14"]
[Round "5"]
[White "invisible_s0ul"]
[Black "vladgoncharov"]
[Result "0-1"]
[WhiteElo "2332"]
[BlackElo "2567"]
[TimeControl "180+1"]
[EndTime "8:57:34 PDT"]
[Termination "vladgoncharov won by resignation"]

1. e4 {[%clk 0:03:00.9]} 1... e6 {[%clk 0:02:57]} 2. d4 {[%clk 0:02:54.4]} 2...
d5 {[%clk 0:02:57.4]} 3. exd5 {[%clk 0:02:55.2]} 3... exd5 {[%clk 0:02:56.9]} 4.
Bd3 {[%clk 0:02:51.3]} 4... Nc6 {[%clk 0:02:56.3]} 5. c3 {[%clk 0:02:51.9]} 5...
Bd6 {[%clk 0:02:54.8]} 6. Ne2 {[%clk 0:02:50.4]} 6... Nge7 {[%clk 0:02:53.3]} 7.
O-O {[%clk 0:02:50]} 7... h6 {[%clk 0:02:50]} 8. Bf4 {[%clk 0:02:44.6]} 8... O-O
{[%clk 0:02:49.1]} 9. b4 {[%clk 0:02:35.2]} 9... Bf5 {[%clk 0:02:42.1]} 10. Bxd6
{[%clk 0:02:18]} 10... Qxd6 {[%clk 0:02:41.2]} 11. Ng3 {[%clk 0:02:18.5]} 11...
Bxd3 {[%clk 0:02:27.3]} 12. Qxd3 {[%clk 0:02:19.4]} 12... Qf6 {[%clk 0:02:27.2]}
13. Nd2 {[%clk 0:02:09.8]} 13... Ng6 {[%clk 0:02:25.4]} 14. Qb5 {[%clk
0:02:01.8]} 14... Qd6 {[%clk 0:02:05.7]} 15. Nf5 {[%clk 0:01:38.2]} 15... Qd7
{[%clk 0:01:45]} 16. Ne3 {[%clk 0:01:35.2]} 16... Nf4 {[%clk 0:01:38]} 17. Rfe1
{[%clk 0:01:02.6]} 17... a6 {[%clk 0:01:34.8]} 18. Qf1 {[%clk 0:00:54]} 18...
Rfe8 {[%clk 0:01:28.8]} 19. a4 {[%clk 0:00:37]} 19... Ne7 {[%clk 0:01:19.1]} 20.
Nf3 {[%clk 0:00:35.1]} 20... Neg6 {[%clk 0:01:17.2]} 21. h3 {[%clk 0:00:31.7]}
21... c6 {[%clk 0:01:15.3]} 22. Ng4 {[%clk 0:00:32.2]} 22... Qf5 {[%clk
0:01:09.9]} 23. Nge5 {[%clk 0:00:27.1]} 23... Nxe5 {[%clk 0:01:08.7]} 24. Nxe5
{[%clk 0:00:27.6]} 24... Re6 {[%clk 0:01:03.9]} 25. Nf3 {[%clk 0:00:25]} 25...
Nxh3+ {[%clk 0:01:02.7]} 26. gxh3 {[%clk 0:00:20.5]} 26... Qxf3 {[%clk
0:01:02.2]} 27. Rxe6 {[%clk 0:00:17.9]} 27... fxe6 {[%clk 0:01:02]} 28. Re1
{[%clk 0:00:18.6]} 28... Qxc3 {[%clk 0:00:56.5]} 29. Rxe6 {[%clk 0:00:17.3]}
29... Qxd4 {[%clk 0:00:56.6]} 30. Qg2 {[%clk 0:00:15.2]} 30... Rf8 {[%clk
0:00:49.4]} 31. Rg6 {[%clk 0:00:06.3]} 31... Kh7 {[%clk 0:00:46.4]} 32. Rg4
{[%clk 0:00:05.3]} 32... Qa1+ {[%clk 0:00:43.1]} 33. Kh2 {[%clk 0:00:05.5]}
33... Qe5+ {[%clk 0:00:41.7]} 34. Kg1 {[%clk 0:00:02.8]} 34... Rf4 {[%clk
0:00:37.4]} 35. Rg3 {[%clk 0:00:00.2]} 35... Rxb4 {[%clk 0:00:33.2]} 36. Rg4
{[%clk 0:00:01.1]} 36... Rxg4 {[%clk 0:00:32.8]} 37. Qxg4 {[%clk 0:00:00.2]}
37... Qg5 {[%clk 0:00:32.7]} 38. Qxg5 {[%clk 0:00:00.3]} 38... hxg5 {[%clk
0:00:32.7]} 39. Kg2 {[%clk 0:00:01.2]} 39... b5 {[%clk 0:00:32.5]} 40. Kf3
{[%clk 0:00:02.1]} 0-1

[Event "Early-Titled-Tuesday-Blitz-May-14-2024"]
[Site "Chess.com"]
[Date "2024.05.14"]
[Round "5"]
[White "KorolDimitriy75"]
[Black "ImportedItalianMaple"]
[Result "0-1"]
[WhiteElo "2419"]
[BlackElo "2593"]
[TimeControl "180+1"]
[EndTime "8:57:35 PDT"]
[Termination "ImportedItalianMaple won by checkmate"]

1. d4 {[%clk 0:03:00.9]} 1... g6 {[%clk 0:03:00.2]} 2. Nf3 {[%clk 0:03:00.2]}
2... Bg7 {[%clk 0:03:00.8]} 3. c4 {[%clk 0:02:59.6]} 3... d6 {[%clk 0:03:00.4]}
4. Nc3 {[%clk 0:02:59.1]} 4... Nc6 {[%clk 0:02:59.6]} 5. e3 {[%clk 0:02:58.7]}
5... e5 {[%clk 0:02:58.6]} 6. Be2 {[%clk 0:02:58.5]} 6... f5 {[%clk 0:02:55]} 7.
O-O {[%clk 0:02:54.6]} 7... e4 {[%clk 0:02:54.8]} 8. Nd2 {[%clk 0:02:49.4]} 8...
Nf6 {[%clk 0:02:54.6]} 9. Rb1 {[%clk 0:02:37.8]} 9... h5 {[%clk 0:02:45.1]} 10.
b4 {[%clk 0:02:34]} 10... h4 {[%clk 0:02:44.9]} 11. h3 {[%clk 0:02:25.2]} 11...
g5 {[%clk 0:02:23.1]} 12. b5 {[%clk 0:02:15.5]} 12... Ne7 {[%clk 0:02:23.1]} 13.
f3 {[%clk 0:01:59.3]} 13... g4 {[%clk 0:02:13.1]} 14. hxg4 {[%clk 0:01:26.4]}
14... fxg4 {[%clk 0:02:08.8]} 15. fxg4 {[%clk 0:00:49.7]} 15... h3 {[%clk
0:02:03.6]} 16. g3 {[%clk 0:00:33]} 16... Qd7 {[%clk 0:01:35.8]} 17. g5 {[%clk
0:00:15.3]} 17... Ng4 {[%clk 0:01:33.2]} 18. Ndxe4 {[%clk 0:00:15.1]} 18... h2+
{[%clk 0:01:18.3]} 19. Kh1 {[%clk 0:00:14.9]} 19... d5 {[%clk 0:00:16.9]} 20.
Nf6+ {[%clk 0:00:11.7]} 20... Bxf6 {[%clk 0:00:14.1]} 21. gxf6 {[%clk
0:00:12.6]} 21... Ng6 {[%clk 0:00:13]} 22. Nxd5 {[%clk 0:00:11.5]} 22... Nh6
{[%clk 0:00:10.4]} 23. Bh5 {[%clk 0:00:10.7]} 23... Kf7 {[%clk 0:00:10.2]} 24.
Qd3 {[%clk 0:00:09.6]} 24... Rg8 {[%clk 0:00:08.9]} 25. Ne7 {[%clk 0:00:09.5]}
25... Ng4 {[%clk 0:00:04.3]} 26. Bxg6+ {[%clk 0:00:09.1]} 26... Kf8 {[%clk
0:00:04]} 27. Bf5 {[%clk 0:00:09.3]} 27... Qd6 {[%clk 0:00:02]} 28. Nxc8 {[%clk
0:00:09.2]} 28... Qxg3 {[%clk 0:00:01.2]} 29. Bd2 {[%clk 0:00:07.6]} 29... Nf2+
{[%clk 0:00:02.1]} 30. Rxf2 {[%clk 0:00:07.4]} 30... Qg1+ {[%clk 0:00:02.8]} 31.
Rxg1 {[%clk 0:00:05.8]} 31... hxg1=Q# {[%clk 0:00:03.7]} 0-1